Cogmind - Beta 16.1 @@@ ROGUE MODE // 2026.03.31 @ 19:09:02 Player: Gatamar Result: Destroyed by PL-QQY(R) with Subdweller Laser Performance ------------- Evolutions (0) 0 Regions Visited (2) 400 Robots Destroyed (37) 185 Value Destroyed (725) 725 Prototype IDs (0) 0 Alien Tech Used (0) 0 Bonus (0) 0 TOTAL SCORE: 1310 Bonus ------- None Cogmind --------- Core Integrity 0/250 Matter 280/300 Energy 55/250 System Corruption 0% Temperature Cool (57) Movement Treading (240) Ox1 Location -10/Subcaves Parts ------- > --- POWER (1) -------- Ion Engine > --- PROPULSION (2) --- Light Treads Light Treads > --- UTILITY (2) ------ High-capacity Storage Unit Light Armor Plating > --- WEAPON (2) ------- Beam Cannon Subdweller Beam Cannon > --- INVENTORY (20) --- Light Treads Subdweller Monowheel Small Storage Unit Large Storage Unit Small Matter Pod (50) Medium Matter Pod (100) Medium Matter Pod (100) Seismic Detector Light Armor Plating Medium Laser Beam Cannon Beam Cannon Light Assault Rifle Light Assault Rifle Light Assault Rifle Grenade Launcher Grenade Launcher Peak State ------------ > --- POWER ------------ Ion Engine > --- PROPULSION ------- Light Treads Light Treads > --- UTILITY ---------- High-capacity Storage Unit Seismic Detector > --- WEAPON ----------- Beam Cannon Subdweller Beam Cannon > --- INVENTORY -------- Ion Engine Light Treads Small Storage Unit Large Storage Unit Small Matter Pod Medium Matter Pod Medium Matter Pod Light Armor Plating Light Armor Plating Medium Laser Beam Cannon Beam Cannon Light Assault Rifle Light Assault Rifle Light Assault Rifle Grenade Launcher Grenade Launcher [Rating: 9] Favorites ----------- Power Ion Engine Engine Ion Engine Propulsion Light Treads Treads Light Treads Wheel Wheel Utility Seismic Detector Device Seismic Detector Storage High-capacity Storage Unit Protection Light Armor Plating Weapon Light Assault Rifle Energy Cannon Beam Cannon Ballistic Gun Light Assault Rifle Launcher Grenade Launcher Build | -11 -10 -10 ------- Run | Yrd Mat Sub Slots Evolved . | . . . Power . | . . . Propulsion . | . . . Utility . | . . . Weapon . | . . . Parts Attached 23 | 9 10 4 Power 2 | 1 1 . Engine 2 | 1 1 . Core . | . . . Reactor . | . . . Propulsion 7 | 4 3 . Treads 4 | 2 2 . Leg . | . . . Wheel 3 | 2 1 . Hover . | . . . Flight . | . . . Utility 6 | 2 3 1 Device 1 | 1 . . Storage 3 | 1 2 . Processor . | . . . Hackware . | . . . Protection 2 | . 1 1 Artifact . | . . . Weapon 8 | 2 3 3 Energy Gun . | . . . Energy Cannon 3 | . . 3 Ballistic Gun 4 | 2 2 . Ballistic Cannon . | . . . Launcher 1 | . 1 . Special Weapon . | . . . Impact Weapon . | . . . Slashing Weapon . | . . . Piercing Weapon . | . . . Special Melee Weapon . | . . . Unidentified Prototypes . | . . . Parts Lost 3 | . . 3 Power 1 | . . 1 Propulsion 2 | . . 2 Utility . | . . . Weapon . | . . . Highest Loss Streak 1 | . . 1 To Critical Strikes . | . . . Average Backups 13 | 3 11 18 Power . | . 1 . Propulsion 2 | 1 2 2 Utility 5 | . 4 7 Weapon 5 | . 3 7 Tool/Special . | . . . Unused Backups 8 | . 1 7 Power . | . . . Propulsion 1 | . . 1 Utility 3 | . . 3 Weapon 4 | . 1 3 Tool/Special . | . . . Average Slot Usage (%) 99 | . 100 97 Engine 13 | . 14 13 Treads 14 | . 19 8 Wheel 12 | . 8 17 Device 11 | . 10 14 Storage 14 | . 14 14 Protection 2 | . 3 . Energy Cannon 7 | . . 18 Ballistic Gun 18 | . 27 5 Launcher 1 | . . 4 Peak Build Rating 9 | 7 8 9 Average Rating 7 | 5 7 8 On Entrance 5 | . 7 8 Avg Prop Armor Cover (%) . | . . . Naked Turns . | . . . Heaviest Build 57 | 14 50 57 Greatest Support 40 | 40 40 40 Greatest Overweight (x) 5 | . 2 5 Average Overweight (x) 1 | . . 2 Largest Inventory Capacity 20 | 8 20 20 Average Capacity 17 | 7 15 20 Most Carried 19 | 5 18 19 Average Carried 13 | 3 11 18 Final Capacity 20 | 8 20 20 Final Carried 18 | 4 18 17 Class Distribution -------------------- 71% | Mutant 28% | Scavenger-Mutant Dominant Class ---------------- Mutant | -10/Materials Mutant | -10/Subcaves Resources | -11 -10 -10 ----------- Run | Yrd Mat Sub Matter Collected 1277 | 312 589 376 Remotely . | . . . Salvage Created 1191 | 97 841 253 Parts 83 | 12 49 22 Haulers Intercepted 1 | . 1 . Recyclers Shooed 2 | . 2 . Parts Field Recycled . | . . . Retrieved Matter . | . . . Parts Self-Destructed 15 | . . 15 Prevented . | . . . Parts Restored . | . . . Kills | -11 -10 -10 ------- Run | Yrd Mat Sub Combat Hostiles Destroyed 28 | . 19 9 Guns 19 | . 19 . Cannons 4 | . . 4 AOE 4 | . . 4 Classes Destroyed 7 | 2 4 1 Worker 2 | . 2 . Tunneler 2 | 2 . . Hauler 1 | . 1 . Recycler 4 | 1 3 . Swarmer 13 | . 9 4 Grunt 10 | . 10 . Subdweller 5 | . . 5 Best Kill Streak 4 | 2 4 4 Combat Bots Only 4 | . 4 4 Max Kills in Single Turn 2 | 1 2 2 Gunslinging 1 | . 1 . Exploded 2 | . . 2 Melee . | . . . Uniques/NPCs Destroyed . | . . . Combat | -11 -10 -10 -------- Run | Yrd Mat Sub Hostile Shots Fired 131 | . 78 53 Missed 42 | . 22 20 Hits 89 | . 56 33 Projectile 89 | . 56 33 Damage Taken 1100 | 2 533 565 Core 254 | 2 67 185 Absorbed by Shields . | . . . Core Remaining (%) 99 | 99 . . Volleys Fired 132 | 6 88 38 Largest 2 | 2 2 2 Hottest 140 | 40 40 140 Shots Fired 235 | 12 171 52 Gun 178 | 12 166 . Cannon 39 | . . 39 Launcher 18 | . 5 13 Special . | . . . Kinetic 178 | 12 166 . Thermal 39 | . . 39 Explosive 18 | . 5 13 Electromagnetic . | . . . Robot Hit Streak 14 | 2 10 14 Robot Miss Streak 6 | 2 6 2 Penetration Max . | . . . Secondary Targets 1 | . 1 . Max Gunslinging Chain 1 | . 1 . Shots Hit Robots 126 | 6 95 25 Core Hits 59 | 5 41 13 Critical Kills 2 | . 1 1 Critical Parts Destroyed . | . . . Critical Strikes 2 | . 1 1 Meltdown 1 | . . 1 Destroy 1 | . 1 . Melee Attacks . | . . . Impact . | . . . Slashing . | . . . Piercing . | . . . Sneak Attacks . | . . . Combat Hostiles . | . . . Follow-up Attacks . | . . . Damage Inflicted 1779 | 73 1005 701 Guns 1068 | 68 1000 . Cannons 451 | . . 451 Explosions 250 | . . 250 Melee . | . . . Ramming 10 | 5 5 . Kinetic 1068 | 68 1000 . Thermal 451 | . . 451 Explosive 250 | . . 250 Electromagnetic . | . . . Impact . | . . . Slashing . | . . . Piercing . | . . . Highest Corruption . | . . . Average Corruption . | . . . Corruption Purged . | . . . Corruption Blocked . | . . . Overload Shots . | . . . Overflow Damage 8 | . . 8 Projectiles . | . . . Explosions 8 | . . 8 Melee . | . . . Knockbacks . | . . . Impact . | . . . Kinetic . | . . . Secondary . | . . . Self-Inflicted Damage 44 | 2 . 42 Shots 2 | . . 2 Rammed 2 | 1 1 . Targets Rammed 3 | 1 2 . Kicked . | . . . Crushed 1 | . 1 . Highest Temperature 108 | . 12 108 Average Temperature 14 | . 6 31 Received Heat Transfer 306 | . 156 150 Siege Activations . | . . . Martial Activations . | . . . Shielding Activations . | . . . Robots Disrupted . | . . . Combat Hostiles . | . . . Robots Corrupted . | . . . Combat Hostiles . | . . . Parts Fried . | . . . Impact Corruptions . | . . . Robots Melted 1 | . . 1 Combat Hostiles 1 | . . 1 Parts Melted 3 | . . 3 Heat Transferred 814 | . . 814 Parts Sabotaged . | . . . Parts Stolen . | . . . Parts Stripped . | . . . Power Chain Reactions . | . . . Alert | -11 -10 -10 ------- Run | Yrd Mat Sub Maximum Alert Level 1 | . 1 . Low Security (%) 95 | 100 95 . Level 1 4 | . 4 . Level 2 . | . . . Level 3 . | . . . Level 4 . | . . . Level 5 . | . . . High Security . | . . . Max Security . | . . . Peak Influence 217 | 5 217 . Initial . | . . . Average 96 | 1 103 . Influence Increases 754 | 15 584 155 Destroy 0b10 Robot/C 460 | . 380 80 Destroy 0b10 Robot/NC 45 | 15 30 . Destroy Leader 82 | . 82 . Successful Hack 16 | . 16 . Destroy Structure 16 | . 16 . Lose Combat Pursuer 135 | . 60 75 Influence Decreases 754 | 15 429 310 Entered New Map 75 | . . 75 Time Decay 679 | 15 429 235 Squads Dispatched 4 | . 4 . Investigation 2 | . 2 . Extermination . | . . . Reinforcement 2 | . 2 . Assault . | . . . Garrison . | . . . Intercept . | . . . Searches Triggered . | . . . Construction Impeded . | . . . Haulers Reinforced . | . . . Active Scanning Responses . | . . . Cargo Convoy Interrupts . | . . . Stealth | -11 -10 -10 --------- Run | Yrd Mat Sub Distress Signals 2 | . 2 . Communications Jammed . | . . . Distress Signals . | . . . Times Spotted 53 | . 40 13 Peak Tracking Total 6 | . 6 6 Tactical Retreats 5 | . 4 1 Traps | -11 -10 -10 ------- Run | Yrd Mat Sub Traps Triggered 2 | . 2 . Indirectly . | . . . Trap Hack Attempts . | . . . Triggered . | . . . Disarmed 6 | . 6 . Reprogrammed . | . . . Reused . | . . . Traps Extracted . | . . . Installed . | . . . Triggered . | . . . Machines | -11 -10 -10 ---------- Run | Yrd Mat Sub Machines Disabled . | . . . Max in Single Turn . | . . . Machines Repaired . | . . . Machines Dismantled . | . . . Machines Sabotaged . | . . . Overloaded Fab Kills . | . . . Hacking | -11 -10 -10 --------- Run | Yrd Mat Sub Machines Accessed 8 | . 6 2 Terminals 4 | . 4 . Fabricators . | . . . Repair Stations 1 | . 1 . Recycling Units 1 | . 1 . Scanalyzers . | . . . Garrison Access . | . . . Total Hacks 14 | . 11 3 Successful 8 | . 5 3 Failed 6 | . 6 . Catastrophic . | . . . Database Lockouts . | . . . Manual 1 | . 1 . Terminals 8 | . 8 . Fabricators . | . . . Repair Stations 2 | . 2 . Recycling Units 1 | . 1 . Scanalyzers . | . . . Garrison Access . | . . . Terminal Hacks 6 | . 3 3 Record 1 | . . 1 Open Door 1 | . . 1 Emergency Access Points 1 | . 1 . Locate Traps 1 | . 1 . Disarm Traps 1 | . 1 . Release Object 1 | . . 1 Fabricator Hacks . | . . . Repair Station Hacks 1 | . 1 . Scan Component 1 | . 1 . Recycling Unit Hacks 1 | . 1 . Report Inventory 1 | . 1 . Scanalyzer . | . . . Garrison Access Hacks . | . . . Unauthorized Hacks . | . . . Terminals . | . . . Fabricators . | . . . Repair Stations . | . . . Recycling Units . | . . . Scanalyzers . | . . . Garrison Access . | . . . Data Cores Recovered . | . . . Used . | . . . Hacking Detections 5 | . 5 . Full Trace Events . | . . . Feedback Events . | . . . Feedback Blocked . | . . . Robot Schematics Acquired . | . . . Robots Built . | . . . Authchips . | . . . Time . | . . . Total Robot Build Rating . | . . . Part Schematics Acquired . | . . . Parts Built . | . . . Authchips . | . . . Time . | . . . Total Part Build Rating . | . . . Part Studies Acquired . | . . . Parts Repaired . | . . . Time . | . . . Parts Recycled . | . . . Recycled Matter . | . . . Retrieved Matter . | . . . Retrieved Components . | . . . Parts Scanalyzed . | . . . Part Schematics Acquired . | . . . Parts Damaged . | . . . Bothacking | -11 -10 -10 ------------ Run | Yrd Mat Sub Used RIF Installer . | . . . Robots Hacked . | . . . Non-combat . | . . . Combat . | . . . Robot Hacks Applied . | . . . Relay Couplers Released . | . . . Fabnet Peak Effective % . | . . . Robots Rewired . | . . . Allies Hacked . | . . . Hacks Repelled . | . . . Allies | -11 -10 -10 -------- Run | Yrd Mat Sub Total Allies . | . . . Largest Group . | . . . Highest-Rated Group . | . . . Highest-Rated Ally . | . . . Total Orders . | . . . Ally Attacks . | . . . Total Damage . | . . . Kills . | . . . Allies Corrupted . | . . . Allies Melted . | . . . Intel | -11 -10 -10 ------- Run | Yrd Mat Sub Active Infowar (turns) 2709 | 26 1388 1295 Seismic 2709 | 26 1388 1295 Robot Analysis Total . | . . . Derelict Logs Recovered 1 | . . 1 Drone Launches . | . . . Drone Recoveries . | . . . Exploration | -11 -10 -10 ------------- Run | Yrd Mat Sub Turns Passed 3278 | 121 1856 1301 Spaces Moved 1667 | 60 762 845 Core 1 | 1 . . Treads 654 | 45 447 162 Legs . | . . . Wheels 1012 | 14 315 683 Hover . | . . . Flight . | . . . Fastest Speed 50 | 50 110 110 Average Speed 139 | 142 139 139 Slowest Speed 240 | 160 240 240 Overloaded Moves . | . . . Propulsion Burnouts . | . . . Robots Hopped . | . . . Potential Cave-ins . | . . . Cave-ins Triggered . | . . . Exploration Rate (%) 54 | 5 99 59 Regions Visited 2 Branch Regions 1 Pre-discovered Areas . | . . . Known Exits Taken . | . . . Unknown Exits Taken 2 | 1 1 . Scrap Searched . | . . . Spaces Dug . | . . . Terrain Destroyed 74 | . 22 52 Melee . | . . . Projectile 1 | . . 1 AOE 73 | . 22 51 Terrain Rammed . | . . . Walls Destroyed . | . . . Machines Disabled . | . . . Actions | -11 -10 -10 --------- Run | Yrd Mat Sub Total 2395 | 81 1398 916 Wait 535 | . 515 20 Move 1665 | 59 761 845 Hop . | . . . Pick Up 21 | 5 13 3 Fast Attach 7 | 7 . . Attach 3 | . . 3 Detach . | . . . Swap 22 | 2 15 5 Drop 6 | 1 4 1 Fire 132 | 6 88 38 Melee . | . . . Ram 1 | 1 . . Kick . | . . . Crush 2 | . 2 . Escape Stasis . | . . . Rewire . | . . . Trap . | . . . Miscellaneous 1 | . . 1 Route ------- -11/Scrapyard -10/Materials (discovered 5 exits: [*Mat x3] / [*Min] / *Sub) -10/Subcaves (discovered 2 exits: [*Mat x2]) History --------- Turn | Location | Event 32 | -11/Scrapyard | Discovered new exit (range 14) 122 | -11/Scrapyard | Entered Materials 307 | -10/Materials | Build established: Mutant 739 | -10/Materials | Discovered new exit (range 9) 850 | -10/Materials | Discovered new exit (range 11) 1363 | -10/Materials | Discovered new exit (range 15) 1626 | -10/Materials | Discovered new exit (range 4) 1769 | -10/Materials | Build established: Scavenger-Mutant 1969 | -10/Materials | Discovered new exit (range 8) 1978 | -10/Materials | Entered Subcaves 1979 | -10/Subcaves | Approached by a straggling Scientist 2122 | -10/Subcaves | Core integrity fell below 50% 2240 | -10/Subcaves | Build established: Mutant 2258 | -10/Subcaves | Released subatomizers from SUBCON Basin 2311 | -10/Subcaves | A swath of the cavern ceiling suddenly collapsed 2455 | -10/Subcaves | A swath of the cavern ceiling suddenly collapsed 2702 | -10/Subcaves | Ambushed by Subdwellers from Twisted Machinery 2855 | -10/Subcaves | Disturbed a concealed Subdweller 2856 | -10/Subcaves | Learned Materials stockpile data 2873 | -10/Subcaves | Core integrity fell below 20% 3008 | -10/Subcaves | Discovered new exit (range 5) 3183 | -10/Subcaves | Build established: Scavenger-Mutant 3265 | -10/Subcaves | Discovered new exit (range 6) 3279 | -10/Subcaves | Destroyed by PL-QQY(R) with Subdweller Laser Last Messages --------------- 02735_ Acquired 30 matter. 02740_ Acquired Sub. Beam Cannon. 02829_ Acquired 14 matter. 02834_ Acquired 16 matter. 02855_ XU-AFH(R) angrily emerges from the Twisted Machinery. 02856_ Acquired derelict log, extracted data. Data stored: Materials stockpile data. 02856_ Wheel destroyed. 02861_ 7J-1IB(R) suffers critical hit (Meltdown). 02861_ Sub. Power Source melted. 02873_ Sub. Monowheel melted. 02873_ XU-AFH(R) destroyed. 02878_ Acquired 47 matter. 02881_ Acquired 14 matter. 02895_ Acquired Sub. Monowheel. 02959_ HT-9J0(u) builds Twisted Machinery. 03008_ EXIT=FOUND 03268_ Ion Engine destroyed. Map ----- +----------------------------------------------------+ | ??????????????????????????????????????????? | | ??????????????????????????????????????????? | | ??????????????????????????????????????????? | | ??????????????????????????????????????????? | | ??????????????????????????????????????????? | | ??????????????????????????????????????????? | | ??????????????????????????????????????????? | | ??????????????????????????????????????????? | | ??????????????????????????????????????????? | | ??????????????????????????????????????????? | | ??????????????????????????????????????????? | | ??????????????????????????????????????????# | | ?????????????????????????????????????????## | | ???????????????????????????##?###???????## | | ?????????????????????????? ## # ??????## | | ????????????????????????? ?????## | | ???????????????????????? ? #####?# | | ???????????????????????# ?## ## ### | | ?????????????????????## #??# # | | ????????????????????< #?## # ## | | ????????????????#### #??# # ### | | ???????????????## # #??## ## #?? | | ???????????????#$ ????# ### | | ???????????????# ??????# | | ????????????????#R##??????# # | | ????????????????##@##?????# = # | | ?????????????????# ##???# *% # | | ?????????????????# # ##??# ## # | | ?????????????????### #??## #?# ## # # | | ???????????????????# #???##??# ###### # | | ???????????????????##%##??????# ##???## # | | ????????????????????## ###????## #???##"%* | | ?????????????????????## ##????#######"" | | ??????????????????????# ####???## # | | ??????????????????????### ##### ## | | ????????????????????????##### | | ????????????????????????????#### | | ???????????????????????????????##### # | | ???????????????????????????????????# ## | | ????????????????????????????????#### | | ???????????????????????????????## ## | | ???????????????????????###?????# ### # | | ????????????????####??## ##????# ## # | | ????????????????# ### #????# # ## | | ???????????????## ## #????# ## | | ???????????????# """#???## < | | ???????????????## ""##??## ## | | ????????????????##### "" ####" #### | | ????????????????????## #"#"" ##??## | | ????????????????????## """"" ##????##" # | +----------------------------------------------------+ Best States ------------- Heat Dissipation 25 Energy Generation 10 Energy Capacity 250 Matter Stores 300 Matter Capacity 300 Sight Range 16 Terrain Scan Density 10 Armor Coverage 150 Evasion (%) 42 Recoil Reduction 2 Item Schematics ----------------- None Robot Schematics ------------------ None Fabricated ------------ Nothing Repaired ---------- Nothing Studied --------- None Alien Tech Used ----------------- None Achievements -------------- None Challenges ------------ None Game ------ Seed VisualInsulatedFlamer Manual? 0 Play Time 00:19:36 Cumulative 31.5 hours Start 2026.03.31 @ 18:50:13 End 2026.03.31 @ 19:09:02 Sessions 1 Manual Loads 0 Difficulty Rogue Special Mode None Game No. 82 Rogue 82 Adventurer 0 Explorer 0 Win Type - Total 0 Types 0/0/0/0/0/0/0/0/0/0 Lore% 27 Gallery% 28 Achievement% 21 Wizard Run 0 Options --------- Layout 2 ASCII 0 Keyboard 0 Movement Numpad Keybinds 0 Fullscreen 1 Font 32/SmallcapsGlow Map View 50x44 Zoom Use 0% Tactical HUD 1 Map Filters NONE Filters NONE Steam 1 RUN: a70d7b10-618c-41b7-a51f-d13a41f6be6f